[Event "FIDE Women's Grand Swiss 2023"]
[Site "Villa Marina, Douglas, Isle of Man, Isle Of Man"]
[Date "2023.11.05"]
[Round "11.1"]
[White "Munguntuul, Batkhuyag"]
[Black "Vaishali, Rameshbabu"]
[Result "1/2-1/2"]
[TimeControl "40/90 + 30 + 30s/move"]
[WhiteFideId "4900758"]
[BlackFideId "5091756"]
[WhiteElo "2366"]
[BlackElo "2448"]

1. e4 {[%clk 01:30:57]} {[%emt 00:00:02]} e5 {[%clk 01:30:27]} {[%emt
00:00:34]} 2. Nf3 {[%clk 01:31:20]} {[%emt 00:00:06]} Nc6 {[%clk 01:30:51]}
{[%emt 00:00:07]} 3. Bb5 {[%clk 01:31:47]} {[%emt 00:00:03]} a6 {[%clk
01:31:16]} {[%emt 00:00:05]} 4. Ba4 {[%clk 01:32:12]} {[%emt 00:00:05]} Nf6
{[%clk 01:31:32]} {[%emt 00:00:13]} 5. d3 {[%clk 01:32:24]} {[%emt 00:00:19]}
d6 {[%clk 01:31:34]} {[%emt 00:00:29]} 6. c3 {[%clk 01:31:35]} {[%emt
00:01:18]} Bd7 {[%clk 01:31:34]} {[%emt 00:00:30]} 7. O-O {[%clk 01:31:10]}
{[%emt 00:00:54]} h6 {[%clk 01:31:20]} {[%emt 00:00:45]} 8. Re1 {[%clk
01:30:42]} {[%emt 00:00:58]} g5 {[%clk 01:31:08]} {[%emt 00:00:42]} 9. d4
{[%clk 01:25:16]} {[%emt 00:05:56]} g4 {[%clk 01:31:03]} {[%emt 00:00:35]} 10.
Nh4 {[%clk 01:24:17]} {[%emt 00:01:28]} Nxe4 {[%clk 01:24:08]} {[%emt
00:07:26]} 11. Rxe4 {[%clk 01:18:09]} {[%emt 00:06:37]} Qxh4 {[%clk 01:24:29]}
{[%emt 00:00:10]} 12. dxe5 {[%clk 01:13:20]} {[%emt 00:05:19]} O-O-O {[%clk
01:21:34]} {[%emt 00:03:24]} 13. e6 {[%clk 01:12:02]} {[%emt 00:01:49]} fxe6
{[%clk 01:10:53]} {[%emt 00:11:12]} 14. Qxg4 {[%clk 01:03:22]} {[%emt
00:09:09]} Qxg4 {[%clk 01:08:26]} {[%emt 00:02:57]} 15. Rxg4 {[%clk 01:03:49]}
{[%emt 00:00:02]} h5 {[%clk 01:07:11]} {[%emt 00:01:46]} 16. Re4 {[%clk
01:02:20]} {[%emt 00:01:59]} d5 {[%clk 00:57:12]} {[%emt 00:10:30]} 17. Re1
{[%clk 00:56:53]} {[%emt 00:05:56]} Bd6 {[%clk 00:55:59]} {[%emt 00:01:43]} 18.
Bg5 {[%clk 00:53:52]} {[%emt 00:03:30]} Rdf8 {[%clk 00:54:18]} {[%emt
00:02:12]} 19. Nd2 {[%clk 00:40:53]} {[%emt 00:13:29]} Ne5 {[%clk 00:43:55]}
{[%emt 00:10:53]} 20. Bxd7+ {[%clk 00:40:52]} {[%emt 00:00:30]} Kxd7 {[%clk
00:44:09]} {[%emt 00:00:16]} 21. h4 {[%clk 00:25:09]} {[%emt 00:16:13]} Nd3
{[%clk 00:35:20]} {[%emt 00:09:20]} 22. Re2 {[%clk 00:25:26]} {[%emt 00:00:12]}
e5 {[%clk 00:19:14]} {[%emt 00:16:36]} 23. b4 {[%clk 00:23:29]} {[%emt
00:02:27]} b5 {[%clk 00:16:09]} {[%emt 00:03:35]} 24. Nb3 {[%clk 00:21:58]}
{[%emt 00:02:01]} e4 {[%clk 00:15:27]} {[%emt 00:01:12]} 25. Rd1 {[%clk
00:22:10]} {[%emt 00:00:18]} c6 {[%clk 00:15:08]} {[%emt 00:00:49]} 26. Nd4
{[%clk 00:13:42]} {[%emt 00:08:58]} Ne5 {[%clk 00:13:35]} {[%emt 00:02:04]} 27.
a4 {[%clk 00:07:15]} {[%emt 00:06:58]} Rf7 {[%clk 00:03:10]} {[%emt 00:10:54]}
28. axb5 {[%clk 00:07:17]} {[%emt 00:00:28]} axb5 {[%clk 00:03:34]} {[%emt
00:00:06]} 29. Ra1 {[%clk 00:07:26]} {[%emt 00:00:21]} Rc8 {[%clk 00:02:57]}
{[%emt 00:01:07]} 30. Ra7+ {[%clk 00:06:14]} {[%emt 00:01:42]} Rc7 {[%clk
00:03:25]} {[%emt 00:00:01]} 31. Ra8 {[%clk 00:06:34]} {[%emt 00:00:10]} Rc8
{[%clk 00:03:53]} {[%emt 00:00:03]} 32. Ra7+ {[%clk 00:05:29]} {[%emt
00:01:35]} Rc7 {[%clk 00:03:59]} {[%emt 00:00:24]} 33. Ra8 {[%clk 00:05:53]}
{[%emt 00:00:05]} Rc8 {[%clk 00:04:18]} {[%emt 00:00:12]} 34. Rea2 {[%emt
00:00:13]} 1/2-1/2

[Event "FIDE Women's Grand Swiss 2023"]
[Site "Villa Marina, Douglas, Isle of Man, Isle Of Man"]
[Date "2023.11.05"]
[Round "11.2"]
[White "Cramling, Pia"]
[Black "Muzychuk, Anna"]
[Result "1/2-1/2"]
[TimeControl "40/90 + 30 + 30s/move"]
[WhiteFideId "1700030"]
[BlackFideId "14111330"]
[WhiteElo "2446"]
[BlackElo "2510"]

1. Nf3 {[%clk 01:30:54]} {[%emt 00:00:04]} d5 {[%clk 01:30:53]} {[%emt
00:00:09]} 2. d4 {[%clk 01:31:15]} {[%emt 00:00:09]} Nf6 {[%clk 01:31:15]}
{[%emt 00:00:08]} 3. c4 {[%clk 01:31:36]} {[%emt 00:00:08]} c6 {[%clk
01:31:41]} {[%emt 00:00:05]} 4. Nc3 {[%clk 01:29:54]} {[%emt 00:02:11]} e6
{[%clk 01:32:00]} {[%emt 00:00:12]} 5. Qd3 {[%clk 01:29:52]} {[%emt 00:00:31]}
dxc4 {[%clk 01:29:47]} {[%emt 00:02:44]} 6. Qxc4 {[%clk 01:30:16]} {[%emt
00:00:05]} b5 {[%clk 01:30:09]} {[%emt 00:00:09]} 7. Qd3 {[%clk 01:30:37]}
{[%emt 00:00:08]} a6 {[%clk 01:30:18]} {[%emt 00:00:22]} 8. e4 {[%clk
01:30:02]} {[%emt 00:01:04]} c5 {[%clk 01:22:10]} {[%emt 00:08:40]} 9. dxc5
{[%clk 01:30:20]} {[%emt 00:00:11]} Qxd3 {[%clk 01:14:38]} {[%emt 00:08:02]} 10.
Bxd3 {[%clk 01:30:41]} {[%emt 00:00:08]} Bxc5 {[%clk 01:15:02]} {[%emt
00:00:06]} 11. e5 {[%clk 01:15:20]} {[%emt 00:15:50]} Nfd7 {[%clk 01:15:19]}
{[%emt 00:00:15]} 12. Bf4 {[%clk 01:11:32]} {[%emt 00:04:16]} Bb7 {[%clk
01:08:52]} {[%emt 00:06:59]} 13. Be4 {[%clk 01:02:31]} {[%emt 00:09:30]} Nc6
{[%clk 01:07:23]} {[%emt 00:02:00]} 14. Rc1 {[%clk 00:59:36]} {[%emt 00:03:22]}
h6 {[%clk 01:05:06]} {[%emt 00:02:49]} 15. h4 {[%clk 00:58:24]} {[%emt
00:01:42]} Rc8 {[%clk 01:03:23]} {[%emt 00:02:14]} 16. Ke2 {[%clk 00:51:29]}
{[%emt 00:07:23]} Ke7 {[%clk 00:59:28]} {[%emt 00:04:26]} 17. Rhd1 {[%clk
00:51:35]} {[%emt 00:00:24]} Rhd8 {[%clk 00:50:08]} {[%emt 00:09:50]} 18. a3
{[%clk 00:43:05]} {[%emt 00:09:00]} Ba7 {[%clk 00:47:44]} {[%emt 00:02:54]} 19.
b4 {[%clk 00:38:17]} {[%emt 00:05:17]} Bb8 {[%clk 00:39:38]} {[%emt 00:08:37]}
20. h5 {[%clk 00:32:43]} {[%emt 00:06:04]} Nb6 {[%clk 00:36:34]} {[%emt
00:03:35]} 21. Rxd8 {[%emt 00:05:50]} Nxd8 {[%clk 00:36:02]} {[%emt 00:00:48]}
22. Bxb7 {[%clk 00:27:01]} {[%emt 00:01:05]} Nxb7 {[%clk 00:36:31]} 23. a4
{[%clk 00:16:29]} {[%emt 00:11:03]} Rc4 {[%clk 00:22:09]} {[%emt 00:14:53]} 24.
Be3 {[%clk 00:14:56]} {[%emt 00:02:02]} Nxa4 {[%clk 00:17:53]} {[%emt
00:04:46]} 25. Nxa4 {[%clk 00:15:15]} {[%emt 00:00:11]} Rxc1 {[%clk 00:18:20]}
{[%emt 00:00:04]} 26. Bxc1 {[%clk 00:15:39]} {[%emt 00:00:05]} bxa4 {[%clk
00:18:47]} {[%emt 00:00:05]} 27. Kd3 {[%clk 00:15:38]} {[%emt 00:00:29]} Nd8
{[%clk 00:18:29]} {[%emt 00:00:49]} 28. Kc4 {[%clk 00:11:42]} {[%emt 00:04:25]}
Nc6 {[%clk 00:08:36]} {[%emt 00:10:24]} 29. b5 {[%clk 00:06:33]} {[%emt
00:05:38]} axb5+ {[%clk 00:08:21]} {[%emt 00:00:45]} 30. Kxb5 {[%clk 00:07:01]}
{[%emt 00:00:02]} Nxe5 {[%clk 00:08:44]} {[%emt 00:00:08]} 31. Nxe5 {[%clk
00:07:16]} {[%emt 00:00:14]} Bxe5 {[%clk 00:09:12]} {[%emt 00:00:02]} 32. Kxa4
{[%clk 00:07:41]} {[%emt 00:00:06]} f5 {[%clk 00:01:54]} {[%emt 00:07:48]} 33.
Kb5 {[%clk 00:07:06]} {[%emt 00:01:03]} Kf6 {[%clk 00:01:52]} {[%emt 00:00:34]}
34. Kc4 {[%clk 00:03:07]} {[%emt 00:04:28]} f4 {[%clk 00:01:54]} {[%emt
00:00:28]} 35. Kd3 {[%clk 00:02:57]} {[%emt 00:00:39]} Kg5 {[%clk 00:01:24]}
{[%emt 00:01:01]} 36. Ke4 {[%clk 00:02:46]} {[%emt 00:00:41]} Bb8 {[%clk
00:00:45]} {[%emt 00:01:10]} 37. Bb2 {[%clk 00:02:28]} {[%emt 00:00:47]} e5
{[%clk 00:00:42]} {[%emt 00:00:33]} 38. Bxe5 {[%clk 00:02:13]} {[%emt
00:00:45]} Bxe5 {[%clk 00:01:04]} {[%emt 00:00:08]} 39. Kxe5 {[%clk 00:02:38]}
{[%emt 00:00:05]} Kg4 {[%clk 00:00:51]} {[%emt 00:00:43]} 40. Ke4 {[%clk
00:02:52]} {[%emt 00:00:15]} Kg5 {[%clk 00:00:52]} {[%emt 00:00:31]} 41. Ke5
{[%clk 00:02:22]} {[%emt 00:01:00]} 1/2-1/2

[Event "FIDE Women's Grand Swiss 2023"]
[Site "Villa Marina, Douglas, Isle of Man, Isle Of Man"]
[Date "2023.11.05"]
[Round "11.3"]
[White "Tan, Zhongyi"]
[Black "Mammadzada, Gunay"]
[Result "1-0"]
[TimeControl "40/90 + 30 + 30s/move"]
[WhiteFideId "8603642"]
[BlackFideId "13403729"]
[WhiteElo "2517"]
[BlackElo "2441"]

1. e4 {[%clk 01:30:57]} {[%emt 00:00:02]} c5 {[%clk 01:30:45]} {[%emt
00:00:16]} 2. Nf3 {[%clk 01:31:16]} {[%emt 00:00:08]} d6 {[%clk 01:31:10]}
{[%emt 00:00:08]} 3. d4 {[%clk 01:31:40]} {[%emt 00:00:04]} cxd4 {[%clk
01:31:36]} {[%emt 00:00:05]} 4. Nxd4 {[%clk 01:32:05]} {[%emt 00:00:05]} Nf6
{[%clk 01:32:03]} {[%emt 00:00:03]} 5. Nc3 {[%clk 01:32:28]} {[%emt 00:00:07]}
a6 {[%clk 01:32:30]} {[%emt 00:00:04]} 6. Be3 {[%clk 01:32:52]} {[%emt
00:00:05]} e5 {[%clk 01:31:38]} {[%emt 00:01:22]} 7. Nb3 {[%clk 01:33:16]}
{[%emt 00:00:06]} Be6 {[%clk 01:29:54]} {[%emt 00:02:14]} 8. f3 {[%clk
01:33:39]} {[%emt 00:00:07]} h5 {[%clk 01:18:27]} {[%emt 00:11:56]} 9. Nd5
{[%clk 01:32:21]} {[%emt 00:01:49]} Bxd5 {[%clk 01:18:44]} {[%emt 00:00:13]} 10.
exd5 {[%clk 01:32:45]} {[%emt 00:00:06]} Nbd7 {[%clk 01:18:59]} {[%emt
00:00:16]} 11. Qd2 {[%clk 01:33:08]} {[%emt 00:00:06]} g6 {[%clk 01:17:33]}
{[%emt 00:01:57]} 12. O-O-O {[%clk 01:33:29]} {[%emt 00:00:08]} Bg7 {[%clk
01:17:57]} {[%emt 00:00:06]} 13. Kb1 {[%clk 01:33:09]} {[%emt 00:00:50]} O-O
{[%clk 01:17:25]} {[%emt 00:01:03]} 14. h3 {[%clk 01:30:51]} {[%emt 00:02:47]}
Qc7 {[%clk 01:04:06]} {[%emt 00:13:49]} 15. g4 {[%clk 01:28:16]} {[%emt
00:03:04]} Nb6 {[%clk 00:58:52]} {[%emt 00:05:45]} 16. Bg5 {[%clk 01:10:33]}
{[%emt 00:18:13]} h4 {[%clk 00:46:52]} {[%emt 00:12:30]} 17. Bxh4 {[%clk
01:02:17]} {[%emt 00:08:45]} Rfc8 {[%clk 00:45:57]} {[%emt 00:01:26]} 18. Bxf6
{[%clk 00:57:27]} {[%emt 00:05:20]} Bxf6 {[%clk 00:46:25]} {[%emt 00:00:02]} 19.
h4 {[%clk 00:57:48]} {[%emt 00:00:09]} a5 {[%clk 00:41:18]} {[%emt 00:05:37]}
20. g5 {[%clk 00:58:02]} {[%emt 00:00:16]} Bg7 {[%clk 00:41:28]} {[%emt
00:00:20]} 21. h5 {[%clk 00:53:12]} {[%emt 00:05:20]} a4 {[%clk 00:40:11]}
{[%emt 00:01:48]} 22. Na1 {[%clk 00:53:36]} {[%emt 00:00:05]} a3 {[%clk
00:29:41]} {[%emt 00:11:01]} 23. b3 {[%clk 00:53:09]} {[%emt 00:00:56]} gxh5
{[%clk 00:27:02]} {[%emt 00:03:09]} 24. Bh3 {[%clk 00:45:11]} {[%emt 00:08:27]}
Rf8 {[%clk 00:14:58]} {[%emt 00:12:35]} 25. c4 {[%clk 00:42:29]} {[%emt
00:03:11]} e4 {[%clk 00:12:02]} {[%emt 00:03:27]} 26. fxe4 {[%clk 00:42:23]}
{[%emt 00:00:36]} Qe7 {[%clk 00:10:08]} {[%emt 00:02:24]} 27. Nc2 {[%clk
00:42:07]} {[%emt 00:00:46]} Qe5 {[%clk 00:08:22]} {[%emt 00:02:16]} 28. Qd4
{[%clk 00:41:17]} {[%emt 00:01:18]} Qg3 {[%clk 00:05:05]} {[%emt 00:03:48]} 29.
Rd3 {[%clk 00:40:58]} {[%emt 00:00:50]} Bxd4 {[%clk 00:04:39]} {[%emt
00:00:55]} 30. Rxg3 {[%clk 00:41:23]} {[%emt 00:00:05]} Be5 {[%clk 00:05:04]}
{[%emt 00:00:06]} 31. Rf3 {[%clk 00:40:35]} {[%emt 00:01:18]} f6 {[%clk
00:03:13]} {[%emt 00:02:21]} 32. Rg1 {[%clk 00:34:32]} {[%emt 00:06:33]} Kf7
{[%clk 00:01:43]} {[%emt 00:02:00]} 33. g6+ {[%clk 00:34:08]} {[%emt 00:00:53]}
Kg7 {[%clk 00:01:11]} {[%emt 00:01:02]} 34. Ne3 {[%clk 00:34:32]} {[%emt
00:00:07]} 1-0

[Event "FIDE Women's Grand Swiss 2023"]
[Site "Villa Marina, Douglas, Isle of Man, Isle Of Man"]
[Date "2023.11.05"]
[Round "11.4"]
[White "Tsolakidou, Stavroula"]
[Black "Stefanova, Antoaneta"]
[Result "1/2-1/2"]
[TimeControl "40/90 + 30 + 30s/move"]
[WhiteFideId "4264312"]
[BlackFideId "2902257"]
[WhiteElo "2385"]
[BlackElo "2424"]

1. e4 {[%clk 01:30:56]} {[%emt 00:00:02]} e5 {[%clk 01:30:56]} {[%emt
00:00:05]} 2. Nf3 {[%clk 01:31:19]} {[%emt 00:00:06]} Nc6 {[%clk 01:31:22]}
{[%emt 00:00:04]} 3. Bb5 {[%clk 01:31:41]} {[%emt 00:00:07]} a6 {[%clk
01:28:40]} {[%emt 00:03:13]} 4. Ba4 {[%clk 01:30:23]} {[%emt 00:01:48]} Nf6
{[%clk 01:27:51]} {[%emt 00:01:19]} 5. O-O {[%clk 01:30:30]} {[%emt 00:00:22]}
Be7 {[%clk 01:26:22]} {[%emt 00:01:59]} 6. Re1 {[%clk 01:30:38]} {[%emt
00:00:22]} b5 {[%clk 01:24:42]} {[%emt 00:02:10]} 7. Bb3 {[%clk 01:31:03]}
{[%emt 00:00:04]} d6 {[%clk 01:24:51]} {[%emt 00:00:22]} 8. c3 {[%clk
01:31:20]} {[%emt 00:00:12]} O-O {[%clk 01:24:17]} {[%emt 00:01:04]} 9. h3
{[%clk 01:31:38]} {[%emt 00:00:12]} Bb7 {[%clk 01:13:50]} {[%emt 00:10:57]} 10.
d4 {[%clk 01:31:23]} {[%emt 00:00:45]} Re8 {[%clk 01:10:27]} {[%emt 00:03:53]}
11. Nbd2 {[%clk 01:31:18]} {[%emt 00:00:34]} Bf8 {[%clk 01:06:59]} {[%emt
00:03:58]} 12. a3 {[%clk 01:27:42]} {[%emt 00:04:07]} h6 {[%clk 01:00:38]}
{[%emt 00:06:51]} 13. Ba2 {[%clk 01:27:07]} {[%emt 00:01:05]} Nb8 {[%clk
00:53:20]} {[%emt 00:07:48]} 14. d5 {[%clk 01:19:13]} {[%emt 00:08:24]} c6
{[%clk 00:51:17]} {[%emt 00:02:34]} 15. c4 {[%clk 01:12:04]} {[%emt 00:07:38]}
bxc4 {[%clk 00:49:03]} {[%emt 00:02:44]} 16. dxc6 {[%clk 01:12:14]} {[%emt
00:00:20]} Bxc6 {[%clk 00:45:47]} {[%emt 00:03:47]} 17. Bxc4 {[%clk 01:12:34]}
{[%emt 00:00:10]} d5 {[%clk 00:35:44]} {[%emt 00:10:33]} 18. exd5 {[%clk
01:12:08]} {[%emt 00:00:56]} Bxd5 {[%clk 00:35:51]} {[%emt 00:00:23]} 19. Bxd5
{[%clk 01:10:41]} {[%emt 00:01:56]} Qxd5 {[%clk 00:36:16]} {[%emt 00:00:06]} 20.
Ne4 {[%clk 01:10:41]} {[%emt 00:00:30]} Qc6 {[%clk 00:31:28]} {[%emt 00:05:17]}
21. Nxf6+ {[%clk 01:04:32]} {[%emt 00:06:39]} Qxf6 {[%clk 00:31:53]} {[%emt
00:00:05]} 22. Bd2 {[%clk 01:04:47]} {[%emt 00:00:16]} Nc6 {[%clk 00:14:37]}
{[%emt 00:17:46]} 23. Bc3 {[%clk 01:04:56]} {[%emt 00:00:20]} Qd6 {[%clk
00:12:17]} {[%emt 00:02:49]} 24. Qa4 {[%clk 01:03:01]} {[%emt 00:02:26]} f6
{[%clk 00:12:04]} {[%emt 00:00:44]} 25. Qc4+ {[%clk 00:42:41]} {[%emt
00:20:50]} Qe6 {[%clk 00:12:15]} {[%emt 00:00:19]} 26. Qxe6+ {[%clk 00:41:38]}
{[%emt 00:01:33]} Rxe6 {[%clk 00:12:44]} {[%emt 00:00:02]} 27. Rad1 {[%clk
00:41:41]} {[%emt 00:00:27]} Rc8 {[%clk 00:11:58]} {[%emt 00:01:16]} 28. Rd7
{[%clk 00:37:24]} {[%emt 00:04:47]} Re7 {[%clk 00:10:59]} {[%emt 00:01:29]} 29.
Rd5 {[%clk 00:33:45]} {[%emt 00:04:10]} Kf7 {[%clk 00:09:40]} {[%emt 00:01:49]}
30. Red1 {[%clk 00:31:58]} {[%emt 00:02:17]} Rec7 {[%clk 00:08:24]} {[%emt
00:01:46]} 31. Nh4 {[%clk 00:30:12]} {[%emt 00:02:16]} g6 {[%clk 00:07:38]}
{[%emt 00:01:16]} 32. g4 {[%clk 00:21:32]} {[%emt 00:09:11]} Be7 {[%clk
00:07:22]} {[%emt 00:00:46]} 33. Ng2 {[%clk 00:21:01]} {[%emt 00:01:01]} Nb8
{[%clk 00:04:03]} {[%emt 00:03:48]} 34. f4 {[%clk 00:16:49]} {[%emt 00:04:42]}
exf4 {[%clk 00:03:12]} {[%emt 00:01:22]} 35. Nxf4 {[%clk 00:17:14]} {[%emt
00:00:05]} Rc4 {[%clk 00:01:55]} {[%emt 00:01:46]} 36. Ne2 {[%clk 00:15:59]}
{[%emt 00:01:45]} Nc6 {[%clk 00:01:47]} {[%emt 00:00:38]} 37. Kg2 {[%clk
00:15:26]} {[%emt 00:01:03]} Rd8 {[%clk 00:01:38]} {[%emt 00:00:40]} 38. Rxd8
{[%clk 00:12:39]} {[%emt 00:03:17]} Nxd8 {[%clk 00:02:02]} {[%emt 00:00:05]} 39.
Rd7 {[%clk 00:12:13]} {[%emt 00:00:56]} Ne6 {[%clk 00:01:52]} {[%emt 00:00:40]}
40. Ra7 {[%clk 00:03:06]} {[%emt 00:09:37]} Rc6 {[%clk 00:01:38]} {[%emt
00:00:41]} 41. a4 {[%clk 00:17:40]} {[%emt 00:16:00]} Ke8 {[%clk 00:27:42]}
{[%emt 00:04:24]} 42. Ra8+ {[%clk 00:14:48]} {[%emt 00:03:24]} Kf7 {[%clk
00:25:41]} {[%emt 00:02:31]} 43. Ra7 {[%clk 00:15:13]} {[%emt 00:00:05]}
1/2-1/2

[Event "FIDE Women's Grand Swiss 2023"]
[Site "Villa Marina, Douglas, Isle of Man, Isle Of Man"]
[Date "2023.11.05"]
[Round "11.5"]
[White "Garifullina, Leya"]
[Black "Javakhishvili, Lela"]
[Result "1/2-1/2"]
[TimeControl "40/90 + 30 + 30s/move"]
[WhiteFideId "34127035"]
[BlackFideId "13601458"]
[WhiteElo "2402"]
[BlackElo "2437"]

1. e4 {[%clk 01:30:46]} {[%emt 00:00:13]} c5 {[%clk 01:30:52]} {[%emt
00:00:08]} 2. Nf3 {[%clk 01:31:08]} {[%emt 00:00:08]} Nc6 {[%clk 01:31:09]}
{[%emt 00:00:13]} 3. d4 {[%clk 01:31:32]} {[%emt 00:00:06]} cxd4 {[%clk
01:31:35]} {[%emt 00:00:05]} 4. Nxd4 {[%clk 01:31:55]} {[%emt 00:00:06]} e5
{[%clk 01:31:42]} {[%emt 00:00:24]} 5. Nb5 {[%clk 01:32:03]} {[%emt 00:00:22]}
d6 {[%clk 01:32:05]} {[%emt 00:00:07]} 6. N1c3 {[%clk 01:32:01]} {[%emt
00:00:32]} a6 {[%clk 01:32:24]} {[%emt 00:00:11]} 7. Na3 {[%clk 01:32:27]}
{[%emt 00:00:04]} Be6 {[%clk 01:31:16]} {[%emt 00:01:38]} 8. Nd5 {[%clk
01:29:45]} {[%emt 00:03:12]} Nf6 {[%clk 01:30:35]} {[%emt 00:01:10]} 9. Bg5
{[%clk 01:22:32]} {[%emt 00:07:42]} Qa5+ {[%clk 01:28:33]} {[%emt 00:02:33]} 10.
Bd2 {[%clk 01:21:17]} {[%emt 00:01:44]} Qd8 {[%clk 01:28:56]} {[%emt 00:00:06]}
11. Bg5 {[%clk 01:17:42]} {[%emt 00:04:07]} Qa5+ {[%clk 01:27:46]} {[%emt
00:01:39]} 12. Bd2 {[%clk 01:17:36]} {[%emt 00:00:36]} Qd8 {[%clk 01:28:10]}
{[%emt 00:00:07]} 13. Bg5 {[%clk 01:13:37]} {[%emt 00:04:28]} Qa5+ {[%clk
01:27:53]} {[%emt 00:00:47]} 14. Bd2 {[%clk 01:13:58]} {[%emt 00:00:09]} Qd8
{[%clk 01:28:16]} {[%emt 00:00:07]} 15. Bg5 {[%clk 01:13:10]} {[%emt 00:01:18]}
1/2-1/2